[Event "NM-Senior Hurtig 2018"]
[Site "Frimurer Logen, Norway"]
[Date "2018.11.11"]
[Round "9.2"]
[White "Hamre, Einar"]
[Black "Gyldenås, Ole Jørn"]
[Result "1-0"]
[TimeControl "20 + 10"]
[WhiteElo "1778"]
[BlackElo "1743"]

1. e4 {[%clk 00:20:03]} {[%emt 00:00:06]} e6 {[%clk 00:20:04]} {[%emt
00:00:08]} 2. d4 {[%emt 00:00:03]} d5 {[%emt 00:00:02]} 3. Nc3 {[%clk
00:20:17]} {[%emt 00:00:01]} Nf6 {[%clk 00:20:13]} {[%emt 00:00:12]} 4. Bg5
{[%clk 00:20:13]} {[%emt 00:00:13]} dxe4 {[%clk 00:19:59]} {[%emt 00:00:24]} 5.
Bxf6 {[%clk 00:19:28]} {[%emt 00:00:54]} Qxf6 {[%clk 00:20:04]} {[%emt
00:00:06]} 6. Nxe4 {[%clk 00:19:28]} {[%emt 00:00:09]} Qd8 {[%clk 00:20:08]}
{[%emt 00:00:06]} 7. Nf3 {[%clk 00:18:36]} {[%emt 00:01:03]} Be7 {[%clk
00:20:11]} {[%emt 00:00:07]} 8. Bd3 {[%clk 00:18:10]} {[%emt 00:00:35]} Nd7
{[%clk 00:19:56]} {[%emt 00:00:26]} 9. c3 {[%clk 00:15:30]} {[%emt 00:02:50]}
O-O {[%clk 00:19:30]} {[%emt 00:00:36]} 10. h4 {[%clk 00:14:09]} {[%emt
00:01:31]} b6 {[%clk 00:19:16]} {[%emt 00:00:25]} 11. Rc1 {[%clk 00:13:31]}
{[%emt 00:00:47]} Bb7 {[%clk 00:19:16]} {[%emt 00:00:10]} 12. Bb1 {[%clk
00:13:19]} {[%emt 00:00:22]} Re8 {[%clk 00:18:30]} {[%emt 00:00:55]} 13. Qd3
{[%clk 00:12:25]} {[%emt 00:01:04]} Nf8 {[%clk 00:18:24]} {[%emt 00:00:16]} 14.
h5 {[%clk 00:10:36]} {[%emt 00:02:00]} Bxe4 {[%clk 00:15:41]} {[%emt 00:02:52]}
15. Qxe4 {[%clk 00:10:44]} {[%emt 00:00:02]} Qd5 {[%clk 00:15:33]} {[%emt
00:00:19]} 16. Qf4 {[%clk 00:10:04]} {[%emt 00:00:50]} Bd6 {[%clk 00:13:55]}
{[%emt 00:01:47]} 17. Qe3 {[%clk 00:07:14]} {[%emt 00:03:00]} Rad8 {[%clk
00:13:19]} {[%emt 00:00:46]} 18. b4 {[%clk 00:04:33]} {[%emt 00:02:51]} e5
{[%clk 00:12:43]} {[%emt 00:00:47]} 19. Kf1 {[%clk 00:02:56]} {[%emt 00:01:47]}
exd4 {[%clk 00:12:09]} {[%emt 00:00:45]} 20. Qxd4 {[%clk 00:02:50]} {[%emt
00:00:15]} Qb5+ {[%clk 00:08:56]} {[%emt 00:03:23]} 21. Bd3 {[%clk 00:02:52]}
{[%emt 00:00:07]} Qd7 {[%clk 00:08:34]} {[%emt 00:00:32]} 22. h6 {[%clk
00:02:39]} {[%emt 00:00:24]} Ne6 {[%clk 00:08:10]} {[%emt 00:00:35]} 23. Bxh7+
{[%clk 00:02:25]} {[%emt 00:00:23]} Kf8 {[%clk 00:07:36]} {[%emt 00:00:44]} 24.
hxg7+ {[%clk 00:01:45]} {[%emt 00:00:49]} Nxg7 {[%clk 00:07:34]} {[%emt
00:00:13]} 25. Bc2 {[%clk 00:01:02]} {[%emt 00:00:53]} Qb5+ {[%clk 00:01:19]}
{[%emt 00:06:25]} 26. Bd3 {[%clk 00:00:49]} {[%emt 00:00:22]} Qc6 {[%clk
00:00:39]} {[%emt 00:00:50]} 27. Rh8+ {[%clk 00:00:48]} {[%emt 00:00:11]} Ke7
{[%clk 00:00:47]} {[%emt 00:00:03]} 28. Rxe8+ {[%clk 00:00:31]} {[%emt
00:00:26]} Nxe8 {[%clk 00:00:54]} {[%emt 00:00:03]} 29. Re1+ {[%clk 00:00:36]}
{[%emt 00:00:05]} Be5 {[%clk 00:00:30]} {[%emt 00:00:34]} 30. Rxe5+ {[%clk
00:00:37]} {[%emt 00:00:08]} Kf8 {[%clk 00:00:30]} {[%emt 00:00:11]} 31. Qxd8
{[%clk 00:00:43]} {[%emt 00:00:03]} 1-0

[Event "NM-Senior Hurtig 2018"]
[Site "Frimurer Logen, Norway"]
[Date "2018.11.11"]
[Round "9.3"]
[White "Borch, Alex"]
[Black "Oldernes, Lars Arne"]
[Result "1-0"]
[TimeControl "20 + 10"]
[WhiteElo "1728"]
[BlackElo "1697"]

1. e4 {[%clk 00:20:06]} {[%emt 00:00:03]} e5 {[%clk 00:20:07]} {[%emt
00:00:03]} 2. Nf3 {[%clk 00:20:12]} {[%emt 00:00:04]} Nf6 {[%clk 00:20:15]} 3.
Nc3 {[%clk 00:20:09]} {[%emt 00:00:15]} Nc6 {[%clk 00:20:14]} {[%emt 00:00:11]}
4. Bb5 {[%clk 00:19:43]} {[%emt 00:00:36]} d6 {[%clk 00:20:10]} {[%emt
00:00:13]} 5. h3 {[%clk 00:19:46]} {[%emt 00:00:07]} a6 {[%clk 00:20:16]}
{[%emt 00:00:05]} 6. Bxc6+ {[%clk 00:19:21]} {[%emt 00:00:35]} bxc6 {[%clk
00:20:24]} 7. d3 {[%clk 00:19:04]} {[%emt 00:00:28]} Be6 {[%clk 00:20:31]}
{[%emt 00:00:03]} 8. O-O {[%clk 00:18:11]} {[%emt 00:01:03]} Qd7 {[%clk
00:20:36]} {[%emt 00:00:04]} 9. Nh2 {[%clk 00:18:01]} {[%emt 00:00:20]} h6
{[%clk 00:19:46]} {[%emt 00:01:00]} 10. f4 {[%clk 00:17:09]} {[%emt 00:01:04]}
exf4 {[%clk 00:19:33]} {[%emt 00:00:22]} 11. Bxf4 {[%clk 00:17:08]} {[%emt
00:00:11]} Be7 {[%clk 00:19:09]} {[%emt 00:00:32]} 12. Qf3 {[%clk 00:15:49]}
{[%emt 00:01:30]} g5 {[%clk 00:17:14]} {[%emt 00:02:05]} 13. Be3 {[%clk
00:15:17]} {[%emt 00:00:44]} O-O-O {[%clk 00:13:09]} {[%emt 00:04:13]} 14. Bd4
{[%clk 00:14:31]} {[%emt 00:00:57]} g4 {[%clk 00:12:42]} {[%emt 00:00:36]} 15.
hxg4 {[%clk 00:14:18]} {[%emt 00:00:23]} Nxg4 {[%clk 00:12:21]} {[%emt
00:00:31]} 16. Bxh8 {[%clk 00:13:26]} {[%emt 00:01:03]} Nxh2 {[%clk 00:12:29]}
{[%emt 00:00:01]} 17. Kxh2 {[%clk 00:13:34]} {[%emt 00:00:02]} Rxh8 {[%clk
00:12:37]} {[%emt 00:00:02]} 18. Qh5 {[%clk 00:12:42]} {[%emt 00:01:02]} Bg5
{[%clk 00:11:50]} {[%emt 00:00:57]} 19. Qf3 {[%clk 00:11:29]} {[%emt 00:01:24]}
f6 {[%clk 00:10:59]} {[%emt 00:01:00]} 20. Ne2 {[%clk 00:11:14]} {[%emt
00:00:25]} Bg4 {[%clk 00:10:43]} {[%emt 00:00:25]} 21. Qf2 {[%clk 00:11:09]}
{[%emt 00:00:16]} Qe6 {[%clk 00:10:02]} {[%emt 00:00:51]} 22. Nd4 {[%clk
00:08:59]} {[%emt 00:02:20]} Qe5+ {[%clk 00:09:56]} {[%emt 00:00:16]} 23. Kg1
{[%clk 00:08:59]} {[%emt 00:00:11]} c5 {[%clk 00:09:34]} {[%emt 00:00:31]} 24.
Nf5 {[%clk 00:08:29]} {[%emt 00:00:41]} h5 {[%clk 00:08:26]} {[%emt 00:01:18]}
25. c3 {[%clk 00:07:54]} {[%emt 00:00:45]} h4 {[%clk 00:08:09]} {[%emt
00:00:27]} 26. Rae1 {[%clk 00:07:37]} {[%emt 00:00:27]} h3 {[%clk 00:07:13]}
{[%emt 00:01:05]} 27. g3 {[%clk 00:07:42]} {[%emt 00:00:06]} h2+ {[%clk
00:05:19]} {[%emt 00:02:03]} 28. Kh1 {[%clk 00:07:50]} {[%emt 00:00:03]} Bh3
{[%clk 00:05:16]} {[%emt 00:00:12]} 29. d4 {[%clk 00:07:34]} {[%emt 00:00:27]}
cxd4 {[%clk 00:05:09]} {[%emt 00:00:17]} 30. cxd4 {[%clk 00:07:42]} {[%emt
00:00:02]} Qb5 {[%clk 00:04:44]} {[%emt 00:00:34]} 31. Qc2 {[%clk 00:07:24]}
{[%emt 00:00:29]} Qxf1+ {[%clk 00:02:49]} {[%emt 00:02:04]} 32. Rxf1 {[%clk
00:07:28]} {[%emt 00:00:06]} Bxf1 {[%clk 00:02:58]} {[%emt 00:00:02]} 33. Qf2
{[%clk 00:06:46]} {[%emt 00:00:52]} Bd3 {[%clk 00:02:45]} {[%emt 00:00:23]} 34.
Nh4 {[%clk 00:06:54]} {[%emt 00:00:03]} Bxe4+ {[%clk 00:02:42]} {[%emt
00:00:12]} 35. Kxh2 {[%clk 00:07:03]} {[%emt 00:00:01]} Kd7 {[%clk 00:02:41]}
{[%emt 00:00:12]} 36. Kg1 {[%clk 00:05:38]} {[%emt 00:01:34]} f5 {[%clk
00:02:23]} {[%emt 00:00:28]} 37. Ng2 {[%clk 00:05:24]} {[%emt 00:00:24]} d5
{[%clk 00:02:22]} {[%emt 00:00:12]} 38. Qe2 {[%clk 00:05:16]} {[%emt 00:00:18]}
Rb8 {[%clk 00:01:52]} {[%emt 00:00:39]} 39. b3 {[%clk 00:05:25]} {[%emt
00:00:02]} Rb6 {[%clk 00:01:52]} {[%emt 00:00:09]} 40. Qh5 {[%clk 00:05:24]}
{[%emt 00:00:12]} Bf6 {[%clk 00:01:43]} {[%emt 00:00:19]} 41. Qf7+ {[%clk
00:05:19]} {[%emt 00:00:15]} Kc8 {[%clk 00:01:52]} {[%emt 00:00:02]} 42. Nf4
{[%clk 00:04:52]} {[%emt 00:00:37]} Bxd4+ {[%clk 00:01:56]} {[%emt 00:00:06]}
43. Kf1 {[%clk 00:05:00]} {[%emt 00:00:02]} 1-0

[Event "NM-Senior Hurtig 2018"]
[Site "Frimurer Logen, Norway"]
[Date "2018.11.11"]
[Round "9.4"]
[White "Andersen, Guttorm"]
[Black "Antonsen, Frode"]
[Result "1/2-1/2"]
[TimeControl "20 + 10"]
[WhiteElo "1684"]
[BlackElo "1656"]

1. d4 {[%clk 00:20:04]} {[%emt 00:00:04]} d5 {[%clk 00:20:06]} {[%emt
00:00:05]} 2. c4 {[%clk 00:20:13]} {[%emt 00:00:01]} e6 {[%clk 00:20:11]}
{[%emt 00:00:04]} 3. Nc3 {[%clk 00:20:19]} {[%emt 00:00:04]} Nf6 {[%clk
00:20:11]} {[%emt 00:00:10]} 4. Nf3 {[%clk 00:20:20]} {[%emt 00:00:10]} Be7
{[%clk 00:20:10]} {[%emt 00:00:11]} 5. e3 {[%clk 00:20:10]} {[%emt 00:00:19]}
O-O {[%clk 00:20:00]} {[%emt 00:00:21]} 6. c5 {[%clk 00:19:41]} {[%emt
00:00:39]} a5 {[%clk 00:19:35]} {[%emt 00:00:35]} 7. Bd3 {[%clk 00:19:36]}
{[%emt 00:00:15]} b6 {[%clk 00:19:22]} {[%emt 00:00:23]} 8. Na4 {[%clk
00:18:22]} {[%emt 00:01:24]} bxc5 {[%clk 00:19:03]} {[%emt 00:00:29]} 9. Nxc5
{[%clk 00:18:25]} {[%emt 00:00:07]} Bxc5 {[%clk 00:18:57]} {[%emt 00:00:17]} 10.
dxc5 {[%clk 00:18:34]} Na6 {[%clk 00:18:51]} {[%emt 00:00:16]} 11. c6 {[%clk
00:16:26]} {[%emt 00:02:18]} Nb4 {[%clk 00:18:13]} {[%emt 00:00:47]} 12. Ne5
{[%clk 00:15:57]} {[%emt 00:00:40]} Qd6 {[%clk 00:17:32]} {[%emt 00:00:50]} 13.
a3 {[%clk 00:13:21]} {[%emt 00:02:47]} Nxd3+ {[%clk 00:17:31]} {[%emt
00:00:10]} 14. Nxd3 {[%clk 00:13:30]} {[%emt 00:00:01]} Qxc6 {[%clk 00:17:34]}
{[%emt 00:00:08]} 15. O-O {[%clk 00:13:38]} {[%emt 00:00:02]} Ba6 {[%clk
00:17:33]} {[%emt 00:00:10]} 16. Re1 {[%clk 00:13:44]} {[%emt 00:00:04]} Bxd3
{[%clk 00:17:30]} {[%emt 00:00:13]} 17. Qxd3 {[%clk 00:13:53]} {[%emt
00:00:01]} Qd6 {[%clk 00:17:16]} {[%emt 00:00:24]} 18. Bd2 {[%clk 00:13:49]}
{[%emt 00:00:14]} c5 {[%clk 00:17:20]} {[%emt 00:00:07]} 19. Bc3 {[%clk
00:13:58]} {[%emt 00:00:01]} Ne4 {[%clk 00:17:22]} {[%emt 00:00:08]} 20. Rac1
{[%clk 00:12:31]} {[%emt 00:01:37]} Nxc3 {[%clk 00:17:11]} {[%emt 00:00:21]} 21.
Rxc3 {[%clk 00:12:15]} {[%emt 00:00:27]} Rab8 {[%clk 00:15:34]} {[%emt
00:01:46]} 22. Qc2 {[%clk 00:11:22]} {[%emt 00:01:02]} c4 {[%clk 00:15:29]}
{[%emt 00:00:16]} 23. Rd1 {[%clk 00:11:10]} {[%emt 00:00:23]} Qb6 {[%clk
00:15:27]} {[%emt 00:00:11]} 24. Rb1 {[%clk 00:10:58]} {[%emt 00:00:22]} g6
{[%clk 00:14:02]} {[%emt 00:01:35]} 25. e4 {[%clk 00:09:30]} {[%emt 00:01:38]}
Qd4 {[%clk 00:12:17]} {[%emt 00:01:54]} 26. exd5 {[%clk 00:09:26]} {[%emt
00:00:15]} exd5 {[%clk 00:12:22]} {[%emt 00:00:05]} 27. Rd1 {[%clk 00:09:03]}
{[%emt 00:00:32]} Qe5 {[%clk 00:12:11]} {[%emt 00:00:21]} 28. Qd2 {[%clk
00:08:50]} {[%emt 00:00:23]} Rfd8 {[%clk 00:11:52]} {[%emt 00:00:30]} 29. h3
{[%clk 00:08:02]} {[%emt 00:00:58]} a4 {[%clk 00:11:47]} {[%emt 00:00:15]} 30.
Re1 {[%clk 00:07:36]} {[%emt 00:00:36]} Qf6 {[%clk 00:11:41]} {[%emt 00:00:15]}
31. Rd1 {[%clk 00:07:12]} {[%emt 00:00:34]} Rb3 {[%clk 00:09:55]} {[%emt
00:01:57]} 32. Rxc4 {[%clk 00:06:18]} {[%emt 00:01:04]} Rxb2 {[%clk 00:09:45]}
{[%emt 00:00:21]} 33. Rc2 {[%clk 00:06:26]} {[%emt 00:00:01]} Rb3 {[%clk
00:09:18]} {[%emt 00:00:37]} 34. Qc1 {[%clk 00:02:54]} {[%emt 00:03:43]} Qd6
{[%clk 00:08:18]} {[%emt 00:01:09]} 35. Rc3 {[%clk 00:02:53]} {[%emt 00:00:10]}
d4 {[%clk 00:07:55]} {[%emt 00:00:33]} 36. Rcd3 {[%clk 00:02:53]} {[%emt
00:00:10]} Rxd3 {[%clk 00:07:43]} {[%emt 00:00:23]} 37. Rxd3 {[%clk 00:03:02]}
{[%emt 00:00:01]} Qa6 {[%clk 00:07:08]} {[%emt 00:00:45]} 38. Qd2 {[%clk
00:02:57]} {[%emt 00:00:15]} Qc4 {[%clk 00:07:02]} {[%emt 00:00:16]} 39. Kh2
{[%clk 00:02:48]} {[%emt 00:00:20]} Rd5 {[%clk 00:06:41]} {[%emt 00:00:31]} 40.
g3 {[%clk 00:02:38]} {[%emt 00:00:20]} Kg7 {[%clk 00:06:27]} {[%emt 00:00:23]}
41. h4 {[%clk 00:02:44]} {[%emt 00:00:05]} h5 {[%clk 00:06:31]} {[%emt
00:00:05]} 42. Kg1 {[%clk 00:02:45]} {[%emt 00:00:10]} Rd6 {[%clk 00:05:51]}
{[%emt 00:00:50]} 43. Kh2 {[%clk 00:02:21]} {[%emt 00:00:34]} Rd5 {[%clk
00:05:58]} {[%emt 00:00:03]} 1/2-1/2

[Event "NM-Senior Hurtig 2018"]
[Site "Frimurer Logen, Norway"]
[Date "2018.11.11"]
[Round "9.6"]
[White "Ugland, Torge"]
[Black "Milvang, Otto"]
[Result "0-1"]
[TimeControl "20 + 10"]
[WhiteElo "1646"]
[BlackElo "1691"]

1. e4 {[%clk 00:20:09]} c5 {[%clk 00:20:09]} 2. d4 {[%clk 00:20:18]} cxd4
{[%clk 00:20:18]} {[%emt 00:00:01]} 3. c3 {[%clk 00:20:27]} d3 {[%clk
00:20:27]} {[%emt 00:00:02]} 4. Bxd3 {[%clk 00:20:35]} {[%emt 00:00:02]} g6
{[%clk 00:20:36]} {[%emt 00:00:02]} 5. f4 {[%clk 00:20:42]} {[%emt 00:00:02]}
Bg7 {[%clk 00:20:21]} {[%emt 00:00:25]} 6. Nf3 {[%clk 00:20:48]} {[%emt
00:00:03]} e6 {[%clk 00:20:19]} {[%emt 00:00:13]} 7. Be3 {[%clk 00:20:21]}
{[%emt 00:00:37]} Nc6 {[%clk 00:20:19]} {[%emt 00:00:10]} 8. O-O {[%clk
00:20:19]} {[%emt 00:00:11]} Nge7 {[%clk 00:20:29]} {[%emt 00:00:01]} 9. Nbd2
{[%clk 00:19:55]} {[%emt 00:00:34]} d5 {[%clk 00:20:27]} {[%emt 00:00:12]} 10.
e5 {[%clk 00:16:18]} {[%emt 00:03:47]} O-O {[%clk 00:20:32]} {[%emt 00:00:05]}
11. Nd4 {[%clk 00:16:18]} {[%emt 00:00:09]} a6 {[%clk 00:19:57]} {[%emt
00:00:47]} 12. N2f3 {[%clk 00:15:21]} {[%emt 00:01:06]} b5 {[%clk 00:19:02]}
{[%emt 00:01:06]} 13. Nb3 {[%clk 00:14:04]} {[%emt 00:01:26]} Nf5 {[%clk
00:18:24]} {[%emt 00:00:48]} 14. Bxf5 {[%clk 00:13:09]} {[%emt 00:01:04]} exf5
{[%clk 00:18:26]} {[%emt 00:00:09]} 15. Bc5 {[%clk 00:12:46]} {[%emt 00:00:32]}
Re8 {[%clk 00:18:34]} {[%emt 00:00:03]} 16. Bd6 {[%clk 00:12:52]} {[%emt
00:00:03]} Be6 {[%clk 00:17:52]} {[%emt 00:00:52]} 17. Nc5 {[%clk 00:12:25]}
{[%emt 00:00:37]} Ne7 {[%clk 00:17:00]} {[%emt 00:01:02]} 18. Nxe6 {[%clk
00:11:36]} {[%emt 00:00:59]} fxe6 {[%clk 00:17:08]} {[%emt 00:00:03]} 19. Nd4
{[%clk 00:10:50]} {[%emt 00:00:56]} Nc8 {[%clk 00:16:56]} {[%emt 00:00:22]} 20.
Bc5 {[%clk 00:10:34]} {[%emt 00:00:26]} Qc7 {[%clk 00:15:37]} {[%emt 00:01:29]}
21. b4 {[%clk 00:10:20]} {[%emt 00:00:24]} Bf8 {[%clk 00:15:31]} {[%emt
00:00:16]} 22. Nb3 {[%clk 00:09:35]} {[%emt 00:00:55]} Nb6 {[%clk 00:15:01]}
{[%emt 00:00:41]} 23. Bxf8 {[%clk 00:09:25]} {[%emt 00:00:18]} Kxf8 {[%clk
00:15:09]} {[%emt 00:00:03]} 24. Nc5 {[%clk 00:09:11]} {[%emt 00:00:23]} Nd7
{[%clk 00:14:57]} {[%emt 00:00:23]} 25. Nxd7+ {[%emt 00:00:46]} Qxd7 26. Qd4
{[%clk 00:08:29]} {[%emt 00:00:15]} Rac8 {[%clk 00:14:48]} {[%emt 00:00:29]} 27.
Rac1 {[%clk 00:07:45]} {[%emt 00:00:54]} Rc4 {[%clk 00:14:45]} {[%emt
00:00:13]} 28. Qd2 {[%clk 00:07:46]} {[%emt 00:00:08]} Rec8 {[%clk 00:14:51]}
{[%emt 00:00:04]} 29. Rf3 {[%clk 00:07:04]} {[%emt 00:00:51]} R8c7 {[%clk
00:14:35]} {[%emt 00:00:26]} 30. Qf2 {[%clk 00:05:27]} {[%emt 00:01:48]} Qc8
{[%clk 00:14:09]} {[%emt 00:00:36]} 31. Qh4 {[%clk 00:05:26]} {[%emt 00:00:10]}
Rf7 {[%clk 00:13:11]} {[%emt 00:01:07]} 32. Qf2 {[%clk 00:04:34]} {[%emt
00:01:03]} Qc7 {[%clk 00:12:59]} {[%emt 00:00:22]} 33. h4 {[%clk 00:04:18]}
{[%emt 00:00:26]} Qa7 {[%clk 00:13:08]} {[%emt 00:00:02]} 34. Qxa7 {[%clk
00:04:17]} {[%emt 00:00:10]} Rxa7 {[%clk 00:13:17]} {[%emt 00:00:02]} 35. Rd1
{[%clk 00:03:54]} {[%emt 00:00:32]} Rac7 {[%clk 00:13:26]} {[%emt 00:00:02]} 36.
Rdd3 {[%clk 00:04:03]} Re4 {[%clk 00:12:58]} {[%emt 00:00:38]} 37. Rf2 {[%clk
00:03:35]} {[%emt 00:00:37]} Rcc4 {[%clk 00:12:40]} {[%emt 00:00:30]} 38. g3
{[%clk 00:03:30]} {[%emt 00:00:14]} Kg7 {[%clk 00:12:48]} {[%emt 00:00:03]} 39.
Kg2 {[%clk 00:03:35]} {[%emt 00:00:05]} h5 {[%clk 00:12:48]} {[%emt 00:00:10]}
40. Kf3 {[%clk 00:03:22]} {[%emt 00:00:23]} Kf7 {[%clk 00:11:48]} {[%emt
00:01:11]} 41. Rf1 {[%clk 00:03:26]} {[%emt 00:00:05]} Ke7 {[%clk 00:11:51]}
{[%emt 00:00:08]} 42. Ra1 {[%clk 00:03:28]} {[%emt 00:00:07]} d4 {[%clk
00:11:41]} {[%emt 00:00:20]} 43. Rc1 {[%clk 00:02:26]} {[%emt 00:01:11]} dxc3
{[%clk 00:10:50]} {[%emt 00:01:02]} 44. Rcxc3 {[%clk 00:01:53]} {[%emt
00:00:42]} Rxc3 {[%clk 00:10:49]} {[%emt 00:00:10]} 45. Rxc3 {[%clk 00:02:00]}
{[%emt 00:00:03]} Rxb4 {[%clk 00:10:57]} {[%emt 00:00:02]} 46. Rc7+ {[%clk
00:01:53]} {[%emt 00:00:16]} Kd8 {[%clk 00:11:03]} {[%emt 00:00:04]} 47. Rc6
{[%clk 00:01:58]} {[%emt 00:00:05]} Ra4 {[%clk 00:11:10]} {[%emt 00:00:04]} 48.
Rxe6 {[%clk 00:02:00]} {[%emt 00:00:08]} Rxa2 {[%clk 00:11:19]} {[%emt
00:00:01]} 49. Rxg6 {[%clk 00:01:59]} {[%emt 00:00:10]} b4 {[%clk 00:11:23]}
{[%emt 00:00:06]} 50. Rg5 {[%clk 00:01:25]} {[%emt 00:00:44]} b3 {[%clk
00:11:20]} {[%emt 00:00:13]} 51. Rxf5 {[%clk 00:01:29]} {[%emt 00:00:06]} b2
{[%clk 00:11:26]} {[%emt 00:00:04]} 52. Rxh5 {[%clk 00:01:33]} {[%emt
00:00:06]} b1=Q {[%clk 00:11:33]} {[%emt 00:00:02]} 53. Rg5 {[%clk 00:00:57]}
{[%emt 00:00:45]} Qd1+ {[%clk 00:11:41]} {[%emt 00:00:03]} 54. Ke4 {[%clk
00:01:02]} {[%emt 00:00:05]} Ra3 {[%clk 00:11:23]} {[%emt 00:00:28]} 55. Kf5
{[%clk 00:00:57]} {[%emt 00:00:16]} Qd7+ {[%clk 00:11:02]} {[%emt 00:00:30]} 56.
Kf6 {[%clk 00:00:51]} {[%emt 00:00:16]} Qe7+ {[%clk 00:11:06]} {[%emt
00:00:05]} 57. Kf5 {[%clk 00:00:53]} {[%emt 00:00:08]} Kd7 {[%clk 00:10:42]}
{[%emt 00:00:35]} 58. Kg6 {[%clk 00:00:16]} {[%emt 00:00:48]} Rb3 {[%clk
00:10:31]} {[%emt 00:00:20]} 59. Kh5 {[%clk 00:00:00]} {[%emt 00:00:19]} 0-1

[Event "NM-Senior Hurtig 2018"]
[Site "Frimurer Logen, Norway"]
[Date "2018.11.11"]
[Round "9.7"]
[White "Kristiansen, Erling"]
[Black "Skogheim, Ole Morten"]
[Result "1/2-1/2"]
[TimeControl "20 + 10"]
[WhiteElo "2126"]
[BlackElo "1909"]

1. d4 {[%clk 00:20:03]} {[%emt 00:00:07]} d5 {[%clk 00:20:07]} {[%emt
00:00:03]} 2. Nf3 {[%clk 00:20:10]} {[%emt 00:00:04]} Nf6 {[%clk 00:20:15]}
{[%emt 00:00:02]} 3. c4 {[%clk 00:20:16]} {[%emt 00:00:03]} e6 {[%clk
00:20:21]} {[%emt 00:00:04]} 4. Bg5 {[%clk 00:20:14]} {[%emt 00:00:12]} c5
{[%clk 00:19:48]} {[%emt 00:00:44]} 5. cxd5 {[%clk 00:20:18]} {[%emt 00:00:06]}
exd5 {[%clk 00:19:56]} {[%emt 00:00:02]} 6. Nc3 {[%clk 00:20:24]} {[%emt
00:00:03]} cxd4 {[%clk 00:19:00]} {[%emt 00:01:07]} 7. Nxd4 {[%clk 00:18:56]}
{[%emt 00:01:37]} Nc6 {[%clk 00:19:03]} {[%emt 00:00:07]} 8. e3 {[%clk
00:19:00]} {[%emt 00:00:06]} Be7 {[%clk 00:18:40]} {[%emt 00:00:34]} 9. Bb5
{[%clk 00:19:07]} {[%emt 00:00:02]} Bd7 {[%clk 00:18:39]} {[%emt 00:00:12]} 10.
O-O {[%clk 00:17:34]} {[%emt 00:01:42]} O-O {[%clk 00:18:47]} {[%emt 00:00:03]}
11. Qa4 {[%clk 00:16:36]} {[%emt 00:01:07]} Nxd4 {[%clk 00:16:54]} {[%emt
00:02:03]} 12. Bxd7 {[%clk 00:16:18]} {[%emt 00:00:27]} Nxd7 {[%clk 00:16:23]}
{[%emt 00:00:43]} 13. Bxe7 {[%clk 00:16:14]} {[%emt 00:00:13]} Qxe7 {[%clk
00:16:12]} {[%emt 00:00:22]} 14. Qxd4 {[%clk 00:16:18]} {[%emt 00:00:06]} Nb6
{[%clk 00:14:53]} {[%emt 00:01:30]} 15. Nxd5 {[%clk 00:16:19]} {[%emt
00:00:07]} Nxd5 {[%clk 00:15:01]} {[%emt 00:00:02]} 16. Qxd5 {[%clk 00:16:28]}
{[%emt 00:00:02]} Rfd8 {[%clk 00:15:10]} {[%emt 00:00:01]} 17. Qb3 {[%clk
00:16:27]} {[%emt 00:00:10]} Rd6 {[%clk 00:13:17]} {[%emt 00:02:04]} 18. Rad1
{[%clk 00:16:30]} {[%emt 00:00:07]} Rb6 {[%clk 00:13:00]} {[%emt 00:00:27]} 19.
Qc3 {[%clk 00:16:37]} {[%emt 00:00:02]} Qe6 {[%clk 00:12:18]} {[%emt 00:00:54]}
20. b3 {[%clk 00:16:38]} {[%emt 00:00:07]} h6 {[%clk 00:12:21]} {[%emt
00:00:08]} 21. Rd2 {[%clk 00:16:39]} {[%emt 00:00:08]} Rc8 {[%clk 00:12:19]}
{[%emt 00:00:12]} 22. Qd4 {[%clk 00:16:45]} {[%emt 00:00:04]} a5 {[%clk
00:10:41]} {[%emt 00:01:49]} 23. Rfd1 {[%clk 00:16:11]} {[%emt 00:00:43]} Rbc6
{[%clk 00:10:07]} {[%emt 00:00:44]} 24. h3 {[%clk 00:16:10]} {[%emt 00:00:11]}
b5 {[%clk 00:09:50]} {[%emt 00:00:28]} 25. Qa7 {[%clk 00:15:34]} {[%emt
00:00:45]} a4 {[%clk 00:09:14]} {[%emt 00:00:47]} 26. bxa4 {[%clk 00:15:23]}
{[%emt 00:00:20]} Ra6 {[%clk 00:09:22]} {[%emt 00:00:03]} 27. Qb7 {[%clk
00:15:30]} {[%emt 00:00:03]} Rxa4 {[%clk 00:08:31]} {[%emt 00:01:02]} 28. Qxc8+
{[%clk 00:14:02]} {[%emt 00:01:37]} Qxc8 {[%clk 00:08:32]} {[%emt 00:00:09]} 29.
Rd8+ {[%clk 00:14:10]} Qxd8 {[%clk 00:08:36]} {[%emt 00:00:07]} 30. Rxd8+
{[%clk 00:14:18]} {[%emt 00:00:02]} Kh7 {[%clk 00:08:45]} 31. Rd2 {[%clk
00:14:27]} {[%emt 00:00:02]} Kg6 {[%clk 00:08:03]} {[%emt 00:00:52]} 32. Kf1
{[%clk 00:14:25]} {[%emt 00:00:11]} Kf6 {[%clk 00:08:12]} {[%emt 00:00:03]} 33.
Ke2 {[%clk 00:14:33]} {[%emt 00:00:01]} Ke6 {[%clk 00:08:20]} {[%emt 00:00:02]}
34. Rb2 {[%clk 00:14:33]} {[%emt 00:00:10]} b4 {[%clk 00:08:01]} {[%emt
00:00:29]} 35. Kd3 {[%clk 00:13:22]} {[%emt 00:01:21]} Kd5 {[%clk 00:08:04]}
{[%emt 00:00:07]} 36. Rc2 {[%clk 00:13:29]} {[%emt 00:00:01]} Ra3+ {[%clk
00:08:03]} {[%emt 00:00:13]} 37. Ke2 {[%clk 00:13:35]} {[%emt 00:00:02]} b3
{[%clk 00:07:56]} {[%emt 00:00:18]} 38. Rd2+ {[%clk 00:13:40]} {[%emt
00:00:05]} Ke6 {[%clk 00:08:00]} {[%emt 00:00:06]} 39. axb3 {[%clk 00:13:46]}
{[%emt 00:00:05]} Rxb3 {[%clk 00:08:10]} 40. Ra2 {[%clk 00:13:45]} {[%emt
00:00:10]} Rb6 {[%clk 00:08:17]} {[%emt 00:00:03]} 41. e4 {[%clk 00:13:42]}
{[%emt 00:00:13]} Ke5 {[%clk 00:08:05]} {[%emt 00:00:23]} 42. f3 {[%clk
00:13:50]} {[%emt 00:00:02]} g6 {[%clk 00:08:07]} {[%emt 00:00:09]} 43. g3
{[%clk 00:13:41]} {[%emt 00:00:18]} Rb5 {[%clk 00:08:04]} {[%emt 00:00:13]} 44.
Ra3 {[%clk 00:13:45]} {[%emt 00:00:05]} f5 {[%clk 00:08:07]} {[%emt 00:00:08]}
45. Ke3 {[%clk 00:12:48]} {[%emt 00:01:07]} fxe4 {[%clk 00:07:25]} {[%emt
00:00:53]} 46. fxe4 {[%clk 00:12:53]} {[%emt 00:00:04]} g5 {[%clk 00:06:42]}
{[%emt 00:00:54]} 47. Kf3 {[%clk 00:11:54]} {[%emt 00:01:08]} h5 {[%clk
00:06:51]} 48. Ke3 {[%clk 00:11:32]} {[%emt 00:00:32]} Rc5 {[%clk 00:06:59]}
{[%emt 00:00:03]} 49. Rd3 {[%clk 00:11:31]} {[%emt 00:00:09]} Ra5 {[%clk
00:07:04]} {[%emt 00:00:06]} 50. Kf3 {[%clk 00:11:18]} {[%emt 00:00:23]} Rb5
{[%clk 00:07:01]} {[%emt 00:00:14]} 51. Ke3 {[%clk 00:09:11]} {[%emt 00:02:17]}
Ra5 {[%clk 00:06:59]} {[%emt 00:00:12]} 52. Rd8 {[%clk 00:09:05]} {[%emt
00:00:14]} Ra3+ {[%clk 00:07:06]} {[%emt 00:00:05]} 53. Rd3 {[%clk 00:09:10]}
{[%emt 00:00:05]} Ra5 {[%clk 00:07:14]} 1/2-1/2